[Event "FIDE World Rapid-ch Open 2018"]
[White "Mamedov, Rauf"]
[Black "Kovalev, Vladislav"]
[Site "St. Petersburg"]
[Round "11.34"]
[Annotator "ChessBase"]
[Result "1-0"]
[Date "2018.12.28"]
[WhiteElo "2703"]
[BlackElo "2683"]
[PlyCount "103"]
[TimeControl "900+10"]

1. Nf3 {[%emt 0:1:7]} Nf6 {[%emt 0:0:0]} 2. b3 {[%emt 0:0:1]} e6 {[%emt 0:0:17]
} 3. Bb2 {[%emt 0:0:2]} d5 {[%emt 0:0:7]} 4. g3 {[%emt 0:0:0]} b6 {[%emt 0:0:9]} 5. Bg2 {[%emt 0:0:2]} Bb7 {[%emt 0:0:1]} 6. 0-0 {[%emt 0:0:2]
} Be7 {[%emt 0:0:7]} 7. c4 {[%emt 0:0:3]} 0-0 {[%emt 0:0:23]
} 8. e3 {[%emt 0:0:6]} c5 {[%emt 0:0:6]} 9. Nc3 {[%emt 0:0:2]} dxc4 {[%emt 0:1:18]
} 10. bxc4 {[%emt 0:0:1]} Nc6 {[%emt 0:0:1]} 11. Qe2 {[%emt 0:0:4]
} Rc8 {[%emt 0:1:29]} 12. Rfd1 {[%emt 0:0:21]} Qc7 {[%emt 0:0:0]} 13. Ne1 {[%emt 0:0:9]} Rfd8 {[%emt 0:0:24]} 14. f4 {[%emt 0:0:15]} a6 {[%emt 0:0:19]} 15. g4 {[%emt 0:0:11]} Ne8 {[%emt 0:0:28]} 16. Rab1 {[%emt 0:0:43]
} Nd6 {[%emt 0:1:1]} 17. Ba1 {[%emt 0:0:23]} Na5 {[%emt 0:0:0]} 18. d3 {[%emt 0:0:12]} Bc6 {[%emt 0:0:15]} 19. Qb2 {[%emt 0:0:4]} Bf6 {[%emt 0:5:4]} 20. g5 {[%emt 0:2:23]} Bxc3 {[%emt 0:0:48]} 21. Qxc3 {[%emt 0:0:1]
} Ne8 {[%emt 0:0:6]} 22. Nf3 {[%emt 0:2:5]} Nb7 {[%emt 0:0:0]} 23. Qb2 {[%emt 0:1:31]} b5 {[%emt 0:0:4]} 24. cxb5 {[%emt 0:2:22]} axb5 {[%emt 0:0:4]} 25. Ne5 {[%emt 0:0:1]} Bxg2 {[%emt 0:0:11]} 26. Qxg2 {[%emt 0:0:2]
} Nbd6 {[%emt 0:0:12]} 27. Rdc1 {[%emt 0:0:7]} Qb6 {[%emt 0:0:0]} 28. Ng4 {[%emt 0:1:52]} Nf5 {[%emt 0:0:30]} 29. Rd1 {[%emt 0:1:42]} c4 {[%emt 0:0:13]} 30. d4 {[%emt 0:0:13]} c3 {[%emt 0:0:23]} 31. Rdc1 {[%emt 0:0:32]
} Qa5 {[%emt 0:0:15]} 32. Rb3 {[%emt 0:1:32]} b4 {[%emt 0:0:0]} 33. a3 {[%emt 0:0:26]} bxa3 {[%emt 0:0:45]} 34. Rbxc3 {[%emt 0:0:3]} Rxc3 {[%emt 0:0:4]} 35. Bxc3 {[%emt 0:0:16]} Rc8 {[%emt 0:0:53]} 36. Bxa5 {[%emt 0:0:3]
} Rxc1+ {[%emt 0:0:1]} 37. Be1 {[%emt 0:0:1]} Rxe1+ {[%emt 0:0:0]} 38. Kf2 {[%emt 0:0:0]} Ra1 {[%emt 0:0:18]} 39. Qa8 {[%emt 0:0:2]} Kf8 {[%emt 0:0:8]} 40. Ne5 {[%emt 0:0:10]} a2 {[%emt 0:0:4]} 41. Qa3+ {[%emt 0:1:4]
} Ned6 {[%emt 0:0:5]} 42. e4 {[%emt 0:0:29]} f6 {[%emt 0:0:0]} 43. exf5 {[%emt 0:0:5]} fxe5 {[%emt 0:0:1]} 44. Qxd6+ {[%emt 0:0:2]} Kg8 {[%emt 0:0:0]} 45. Qxe6+ {[%emt 0:0:21]} Kf8 {[%emt 0:0:2]} 46. Qd6+ {[%emt 0:0:1]
} Kg8 {[%emt 0:0:5]} 47. Qd5+ {[%emt 0:0:2]} Kf8 {[%emt 0:0:0]} 48. fxe5 {[%emt 0:0:5]} Rf1+ {[%emt 0:0:6]} 49. Kxf1 {[%emt 0:0:6]} a1=Q+ {[%emt 0:0:2]} 50. Kf2 {[%emt 0:0:5]} Qb2+ {[%emt 0:0:4]} 51. Kg3 {[%emt 0:0:0]
} Qc3+ {[%emt 0:0:30]} 52. Kg4 {[%emt 0:0:4]} 1-0

[Event "FIDE World Rapid-ch Open 2018"]
[White "Tomashevsky, Evgeny"]
[Black "Levin, Evgeny A."]
[Site "St. Petersburg"]
[Round "11.35"]
[Annotator "ChessBase"]
[Result "1/2-1/2"]
[Date "2018.12.28"]
[WhiteElo "2705"]
[BlackElo "2516"]
[PlyCount "69"]
[TimeControl "900+10"]

1. Nf3 {[%emt 0:0:0]} Nf6 {[%emt 0:0:0]} 2. c4 {[%emt 0:0:0]} b6 {[%emt 0:0:14]
} 3. g3 {[%emt 0:0:9]} c5 {[%emt 0:0:14]} 4. Bg2 {[%emt 0:0:0]} Bb7 {[%emt 0:0:1]} 5. 0-0 {[%emt 0:0:3]} e6 {[%emt 0:0:2]} 6. e3 {[%emt 0:0:42]
} Be7 {[%emt 0:1:44]} 7. d4 {[%emt 0:0:16]} cxd4 {[%emt 0:0:0]} 8. exd4 {[%emt 0:0:2]} d5 {[%emt 0:0:6]} 9. Ne5 {[%emt 0:0:41]} 0-0 {[%emt 0:0:8]
} 10. Nc3 {[%emt 0:0:20]} Nc6 {[%emt 0:0:34]} 11. Bf4 {[%emt 0:0:0]} Rc8 {[%emt 0:6:32]} 12. cxd5 {[%emt 0:1:3]} Nxe5 {[%emt 0:0:2]} 13. d6 {[%emt 0:1:54]} Nc6 {[%emt 0:0:1]} 14. dxe7 {[%emt 0:0:31]} Qxe7 {[%emt 0:0:2]
} 15. d5 {[%emt 0:0:36]} Nxd5 {[%emt 0:0:47]} 16. Nxd5 {[%emt 0:0:32]
} exd5 {[%emt 0:0:1]} 17. Qxd5 {[%emt 0:0:8]} Na5 {[%emt 0:0:0]} 18. Qe5 {[%emt 0:0:19]} Qxe5 {[%emt 0:0:12]} 19. Bxe5 {[%emt 0:0:1]
} Bxg2 {[%emt 0:0:2]} 20. Kxg2 {[%emt 0:0:1]} f6 {[%emt 0:0:31]} 21. Bc3 {[%emt 0:0:3]
} Nc6 {[%emt 0:0:20]} 22. Rfd1 {[%emt 0:1:18]} Rfd8 {[%emt 0:0:0]} 23. Rxd8+ {[%emt 0:0:17]} Rxd8 {[%emt 0:0:13]} 24. Rc1 {[%emt 0:0:0]} Ne7 {[%emt 0:0:17]} 25. Bb4 {[%emt 0:1:14]} Rd7 {[%emt 0:0:5]} 26. Bxe7 {[%emt 0:0:15]} Rxe7 {[%emt 0:0:1]} 27. Kf3 {[%emt 0:0:3]} Kf7 {[%emt 0:0:4]
} 28. h4 {[%emt 0:0:4]} h5 {[%emt 0:0:16]} 29. Rc8 {[%emt 0:0:0]} Kg6 {[%emt 0:0:11]} 30. b4 {[%emt 0:0:45]} Kf5 {[%emt 0:0:13]} 31. b5 {[%emt 0:0:22]} Rd7 {[%emt 0:0:32]} 32. Rc3 {[%emt 0:0:31]} Rd5 {[%emt 0:0:0]} 33. Ra3 {[%emt 0:0:22]} Rxb5 {[%emt 0:0:3]} 34. Rxa7 {[%emt 0:0:1]
} g6 {[%emt 0:0:37]} 35. Ra4 {[%emt 0:0:28]} 1/2-1/2

[Event "FIDE World Rapid-ch Open 2018"]
[White "Moiseenko, Vadim"]
[Black "Jobava, Baadur"]
[Site "St. Petersburg"]
[Round "11.36"]
[Annotator "ChessBase"]
[Result "1-0"]
[Date "2018.12.28"]
[WhiteElo "2501"]
[BlackElo "2627"]
[PlyCount "88"]
[TimeControl "900+10"]

1. e4 {[%emt 0:0:0]} c5 {[%emt 0:0:3]} 2. Nf3 {[%emt 0:0:0]} e6 {[%emt 0:0:0]} 3. c4 {[%emt 0:0:9]} Nc6 {[%emt 0:0:34]} 4. Be2 {[%emt 0:0:2]} g5 {[%emt 0:0:21]} 5. d3 {[%emt 0:0:12]} h6 {[%emt 0:0:16]} 6. h4 {[%emt 0:0:0]} g4 {[%emt 0:0:7]} 7. Nfd2 {[%emt 0:0:1]} h5 {[%emt 0:0:4]} 8. Nb3 {[%emt 0:0:20]
} Bg7 {[%emt 0:0:9]} 9. Nc3 {[%emt 0:0:20]} d6 {[%emt 0:0:4]
} 10. Bg5 {[%emt 0:0:40]} Nge7 {[%emt 0:0:16]} 11. Qd2 {[%emt 0:0:3]} a5 {[%emt 0:0:14]
} 12. a4 {[%emt 0:0:15]} b6 {[%emt 0:0:38]} 13. f3 {[%emt 0:0:0]} gxf3 {[%emt 0:0:5]} 14. gxf3 {[%emt 0:0:4]} Ba6 {[%emt 0:0:49]} 15. Rg1 {[%emt 0:0:16]} Nd4 {[%emt 0:0:28]} 16. Nxd4 {[%emt 0:0:45]} Bxd4 {[%emt 0:0:11]
} 17. Rg3 {[%emt 0:0:49]} Qc7 {[%emt 0:0:48]} 18. 0-0-0 {[%emt 0:0:20]
} 0-0-0 {[%emt 0:0:9]} 19. Rg2 {[%emt 0:2:4]} d5 {[%emt 0:0:0]} 20. cxd5 {[%emt 0:1:12]} exd5 {[%emt 0:0:2]} 21. Kb1 {[%emt 0:0:4]} f6 {[%emt 0:0:51]} 22. Bf4 {[%emt 0:0:7]} Be5 {[%emt 0:0:56]} 23. Bxe5 {[%emt 0:0:13]
} fxe5 {[%emt 0:1:6]} 24. Rg7 {[%emt 0:0:17]} dxe4 {[%emt 0:0:0]} 25. Qg5 {[%emt 0:0:53]} Rhg8 {[%emt 0:4:45]} 26. Rxe7 {[%emt 0:1:14]
} Rxg5 {[%emt 0:0:3]} 27. Rxc7+ {[%emt 0:0:1]} Kxc7 {[%emt 0:0:1]} 28. hxg5 {[%emt 0:0:2]} exd3 {[%emt 0:0:9]} 29. Bf1 {[%emt 0:0:5]} c4 {[%emt 0:0:14]
} 30. b3 {[%emt 0:0:49]} cxb3 {[%emt 0:0:6]} 31. Kb2 {[%emt 0:0:0]} Bc4 {[%emt 0:0:3]} 32. Ne4 {[%emt 0:0:19]} Kc6 {[%emt 0:0:10]} 33. Kc3 {[%emt 0:1:13]} b5 {[%emt 0:0:35]} 34. axb5+ {[%emt 0:0:4]} Kxb5 {[%emt 0:0:3]
} 35. Bxd3 {[%emt 0:0:20]} Bxd3 {[%emt 0:0:33]} 36. Rxd3 {[%emt 0:0:2]
} Rf8 {[%emt 0:0:13]} 37. Kxb3 {[%emt 0:0:39]} a4+ {[%emt 0:0:0]} 38. Kc3 {[%emt 0:0:7]} h4 {[%emt 0:0:14]} 39. g6 {[%emt 0:3:6]} Rg8 {[%emt 0:0:13]
} 40. Rd5+ {[%emt 0:0:13]} Kc6 {[%emt 0:0:2]} 41. Rxe5 {[%emt 0:0:8]
} Rxg6 {[%emt 0:0:2]} 42. Rh5 {[%emt 0:0:2]} a3 {[%emt 0:0:0]} 43. Kb3 {[%emt 0:0:28]} Rg1 {[%emt 0:0:25]} 44. Rxh4 {[%emt 0:0:21]} Ra1 1-0

[Event "FIDE World Rapid-ch Open 2018"]
[White "Postny, Evgeny"]
[Black "Dreev, Aleksey"]
[Site "St. Petersburg"]
[Round "11.37"]
[Annotator "ChessBase"]
[Result "1-0"]
[Date "2018.12.28"]
[WhiteElo "2615"]
[BlackElo "2670"]
[PlyCount "147"]
[TimeControl "900+10"]

1. d4 {[%emt 0:0:0]} d5 {[%emt 0:0:0]} 2. c4 {[%emt 0:0:0]} c6 {[%emt 0:0:0]} 3. Nf3 {[%emt 0:0:0]} Nf6 {[%emt 0:0:0]} 4. Nc3 {[%emt 0:0:0]} e6 {[%emt 0:0:0]} 5. e3 {[%emt 0:0:5]} Nbd7 {[%emt 0:0:0]} 6. Qc2 {[%emt 0:0:0]} b6 {[%emt 0:0:0]} 7. b3 {[%emt 0:0:14]} Bb7 {[%emt 0:0:8]} 8. Bb2 {[%emt 0:0:10]} Bd6 {[%emt 0:0:12]} 9. Bd3 {[%emt 0:0:3]} 0-0 {[%emt 0:0:0]} 10. 0-0 {[%emt 0:0:4]} Re8 {[%emt 0:0:14]} 11. Rad1 {[%emt 0:1:9]} Rc8 {[%emt 0:0:52]} 12. Rfe1 {[%emt 0:0:32]} e5 {[%emt 0:0:38]} 13. dxe5 {[%emt 0:0:19]
} Nxe5 {[%emt 0:0:2]} 14. Nxe5 {[%emt 0:0:3]} Bxe5 {[%emt 0:0:0]} 15. Bf5 {[%emt 0:0:27]} Rc7 {[%emt 0:0:20]} 16. Ne2 {[%emt 0:5:49]} Bxb2 {[%emt 0:3:26]} 17. Qxb2 {[%emt 0:0:2]} Qe7 {[%emt 0:0:18]} 18. cxd5 {[%emt 0:1:5]
} Nxd5 {[%emt 0:0:1]} 19. Ng3 {[%emt 0:0:59]} Qf6 {[%emt 0:0:0]} 20. Qc2 {[%emt 0:0:25]} g6 {[%emt 0:0:15]} 21. Rxd5 {[%emt 0:0:6]} Rce7 {[%emt 0:1:27]} 22. Rd2 {[%emt 0:1:33]} gxf5 {[%emt 0:0:2]} 23. Nxf5 {[%emt 0:0:3]
} Re6 {[%emt 0:0:5]} 24. Red1 {[%emt 0:0:41]} Ba8 {[%emt 0:0:0]} 25. f3 {[%emt 0:0:47]} c5 {[%emt 0:1:0]} 26. e4 {[%emt 0:0:2]} Bc6 {[%emt 0:0:53]
} 27. Rd6 {[%emt 0:0:59]} h5 {[%emt 0:1:7]} 28. h4 {[%emt 0:0:0]} Kh7 {[%emt 0:0:9]} 29. Qd2 {[%emt 0:1:4]} Rg8 {[%emt 0:0:3]} 30. Rxe6 {[%emt 0:0:28]} fxe6 {[%emt 0:1:21]} 31. Qd6 {[%emt 0:0:3]} Bb5 {[%emt 0:0:36]
} 32. Kh2 {[%emt 0:1:19]} Kh8 {[%emt 0:1:32]} 33. Qe7 {[%emt 0:0:0]} Qe5+ {[%emt 0:0:54]} 34. Kh3 {[%emt 0:0:18]} Qb2 {[%emt 0:0:6]} 35. Rd2 {[%emt 0:0:8]} Qa1 {[%emt 0:0:5]} 36. Kh2 {[%emt 0:0:10]} Qe5+ {[%emt 0:0:30]
} 37. g3 {[%emt 0:0:22]} Qc3 {[%emt 0:0:5]} 38. Qd6 {[%emt 0:0:0]} Bf1 {[%emt 0:0:19]} 39. Qf4 {[%emt 0:0:6]} Qf6 {[%emt 0:0:3]} 40. Ne3 {[%emt 0:0:32]} Qxf4 {[%emt 0:0:3]} 41. gxf4 {[%emt 0:0:1]} Bb5 {[%emt 0:0:1]
} 42. f5 {[%emt 0:0:9]} exf5 {[%emt 0:0:17]} 43. Nxf5 {[%emt 0:0:2]
} a5 {[%emt 0:0:10]} 44. Rd6 {[%emt 0:0:3]} Rb8 {[%emt 0:0:0]} 45. Rh6+ Kg8 46. Rxh5 {[%emt 0:0:10]} a4 {[%emt 0:0:1]} 47. Rg5+ {[%emt 0:0:14]
} Kh8 {[%emt 0:0:18]} 48. h5 {[%emt 0:0:22]} Rd8 {[%emt 0:0:0]} 49. Rg6 {[%emt 0:0:26]} Be2 {[%emt 0:0:8]} 50. Kg3 {[%emt 0:0:13]} Rd3 {[%emt 0:0:19]} 51. Nh4 {[%emt 0:0:9]} axb3 {[%emt 0:0:2]} 52. axb3 {[%emt 0:0:1]
} Rxb3 {[%emt 0:0:1]} 53. h6 {[%emt 0:0:3]} Kh7 {[%emt 0:0:0]} 54. Rc6 {[%emt 0:0:16]} c4 {[%emt 0:0:11]} 55. Kg4 {[%emt 0:0:17]} c3 {[%emt 0:0:24]
} 56. Nf5 {[%emt 0:0:11]} c2 {[%emt 0:0:7]} 57. Rc7+ {[%emt 0:0:0]} Kh8 {[%emt 0:0:7]} 58. Nd4 {[%emt 0:0:15]} Re3 {[%emt 0:0:17]} 59. Rxc2 {[%emt 0:0:6]} Rxe4+ {[%emt 0:0:2]} 60. Kg5 {[%emt 0:0:8]} Rxd4 {[%emt 0:0:5]
} 61. Rxe2 {[%emt 0:0:3]} Rd5+ {[%emt 0:0:1]} 62. Kf6 {[%emt 0:0:4]
} b5 {[%emt 0:0:26]} 63. f4 {[%emt 0:0:9]} Kh7 {[%emt 0:0:15]
} 64. f5 {[%emt 0:0:6]} Rd8 {[%emt 0:0:6]} 65. Kg5 {[%emt 0:0:6]} b4 {[%emt 0:0:3]
} 66. Re7+ {[%emt 0:0:2]} Kh8 {[%emt 0:0:0]} 67. Rb7 {[%emt 0:0:6]
} Rd4 {[%emt 0:0:11]} 68. Rb8+ {[%emt 0:0:6]} Kh7 {[%emt 0:0:0]} 69. Rb7+ {[%emt 0:0:1]} Kg8 {[%emt 0:0:7]} 70. Kg6 {[%emt 0:0:6]} Rg4+ {[%emt 0:0:1]} 71. Kf6 {[%emt 0:0:2]} Rh4 {[%emt 0:0:21]} 72. Kg5 {[%emt 0:0:2]
} Rc4 {[%emt 0:0:4]} 73. f6 {[%emt 0:0:7]} Rc8 {[%emt 0:0:0]} 74. Kg6 {[%emt 0:0:13]} 1-0

[Event "FIDE World Rapid-ch Open 2018"]
[White "Demidov, Mikhail"]
[Black "Grachev, Boris"]
[Site "St. Petersburg"]
[Round "11.38"]
[Annotator "ChessBase"]
[Result "1-0"]
[Date "2018.12.28"]
[WhiteElo "2520"]
[BlackElo "2626"]
[PlyCount "109"]
[TimeControl "900+10"]

1. e4 {[%emt 0:0:0]} c5 {[%emt 0:2:23]} 2. Nf3 {[%emt 0:0:0]} Nf6 {[%emt 0:0:9]
} 3. e5 {[%emt 0:1:29]} Nd5 {[%emt 0:0:5]} 4. g3 {[%emt 0:0:0]} d6 {[%emt 0:0:24]} 5. Bg2 {[%emt 0:0:36]} Nc6 {[%emt 0:0:4]} 6. exd6 {[%emt 0:0:17]
} Qxd6 {[%emt 0:0:5]} 7. 0-0 {[%emt 0:0:6]} Bg4 {[%emt 0:0:0]} 8. h3 {[%emt 0:0:21]} Bxf3 {[%emt 0:0:15]} 9. Qxf3 {[%emt 0:0:49]} e6 {[%emt 0:0:2]
} 10. Na3 {[%emt 0:0:47]} Be7 {[%emt 0:0:27]} 11. d3 {[%emt 0:0:0]} 0-0 {[%emt 0:0:8]} 12. Nc4 {[%emt 0:0:36]} Qd7 {[%emt 0:0:22]} 13. Re1 {[%emt 0:0:24]} Bf6 {[%emt 0:0:23]} 14. c3 {[%emt 0:2:17]} Rad8 {[%emt 0:0:52]
} 15. a4 {[%emt 0:1:25]} b6 {[%emt 0:3:6]} 16. h4 {[%emt 0:0:0]} h6 {[%emt 0:0:51]} 17. Qg4 {[%emt 0:0:45]} Kh8 {[%emt 0:1:44]} 18. Qh5 {[%emt 0:0:10]} Kg8 {[%emt 0:2:51]} 19. Be4 {[%emt 0:1:14]} Rfe8 {[%emt 0:0:0]} 20. a5 {[%emt 0:1:2]} b5 {[%emt 0:0:53]} 21. Ne3 {[%emt 0:0:1]} b4 {[%emt 0:1:19]} 22. Ng4 {[%emt 0:3:12]} bxc3 {[%emt 0:0:1]} 23. Bxh6 {[%emt 0:0:18]
} gxh6 {[%emt 0:1:20]} 24. Bxd5 {[%emt 0:0:1]} Bg7 {[%emt 0:0:0]} 25. Bxc6 {[%emt 0:0:10]} Qxc6 {[%emt 0:0:2]} 26. Nxh6+ {[%emt 0:0:0]} Bxh6 {[%emt 0:0:1]} 27. Qxh6 {[%emt 0:0:1]} cxb2 {[%emt 0:0:1]} 28. Rab1 {[%emt 0:0:0]} Rxd3 {[%emt 0:0:41]} 29. Rxb2 {[%emt 0:0:36]} Qd5 {[%emt 0:0:3]
} 30. Rbe2 {[%emt 0:0:22]} Rd1 {[%emt 0:0:21]} 31. Kh2 {[%emt 0:0:10]
} Rxe1 {[%emt 0:0:8]} 32. Rxe1 {[%emt 0:0:1]} Qf5 {[%emt 0:0:0]} 33. Qd2 {[%emt 0:0:20]} c4 {[%emt 0:0:15]} 34. Qd4 {[%emt 0:0:9]} e5 {[%emt 0:0:26]} 35. Qxa7 {[%emt 0:0:6]} c3 {[%emt 0:0:4]} 36. Qe3 {[%emt 0:0:4]
} c2 {[%emt 0:0:3]} 37. a6 {[%emt 0:0:3]} Rc8 {[%emt 0:0:8]
} 38. a7 {[%emt 0:0:4]} Kg7 {[%emt 0:0:12]} 39. Ra1 {[%emt 0:0:10]} Ra8 {[%emt 0:0:23]
} 40. Kg1 {[%emt 0:0:22]} f6 {[%emt 0:0:5]} 41. Qb6 {[%emt 0:0:0]} Qe4 {[%emt 0:0:8]} 42. Rc1 {[%emt 0:0:13]} Kg6 {[%emt 0:0:8]} 43. Qc5 {[%emt 0:0:6]} Qd3 {[%emt 0:0:11]} 44. Kh2 {[%emt 0:0:18]} Qf5 {[%emt 0:0:18]
} 45. Kg2 {[%emt 0:0:17]} Rc8 {[%emt 0:0:7]} 46. Qd5 {[%emt 0:0:0]} e4 {[%emt 0:0:14]} 47. Qxf5+ {[%emt 0:0:8]} Kxf5 {[%emt 0:0:1]} 48. Rxc2 {[%emt 0:0:0]} Ra8 {[%emt 0:0:12]} 49. Rc5+ {[%emt 0:0:2]} Kg4 {[%emt 0:0:2]
} 50. Rc7 {[%emt 0:0:6]} Rd8 {[%emt 0:0:11]} 51. Rb7 {[%emt 0:0:0]} Ra8 {[%emt 0:0:12]} 52. Rg7+ {[%emt 0:0:4]} Kh5 {[%emt 0:0:9]} 53. Kf1 {[%emt 0:0:7]} Rc8 {[%emt 0:0:5]} 54. Ke2 {[%emt 0:0:2]} Kh6 {[%emt 0:0:19]
} 55. Rb7 {[%emt 0:0:9]} 1-0

[Event "FIDE World Rapid-ch Open 2018"]
[White "Savchenko, Boris"]
[Black "Bosiocic, Marin"]
[Site "St. Petersburg"]
[Round "11.39"]
[Annotator "ChessBase"]
[Result "1-0"]
[Date "2018.12.28"]
[WhiteElo "2562"]
[BlackElo "2599"]
[PlyCount "99"]
[TimeControl "900+10"]

1. e4 {[%emt 0:0:22]} e5 {[%emt 0:0:0]} 2. Nf3 {[%emt 0:0:32]} Nc6 {[%emt 0:0:0]
} 3. d4 {[%emt 0:0:4]} exd4 {[%emt 0:0:0]} 4. Nxd4 {[%emt 0:0:0]} Nf6 {[%emt 0:0:0]} 5. Nxc6 {[%emt 0:0:2]} bxc6 {[%emt 0:0:0]} 6. e5 {[%emt 0:0:1]} Qe7 {[%emt 0:0:2]} 7. Qe2 {[%emt 0:0:2]} Nd5 {[%emt 0:0:0]} 8. c4 {[%emt 0:0:3]} Nb6 {[%emt 0:0:2]} 9. Nc3 {[%emt 0:0:3]} Qe6 {[%emt 0:0:9]} 10. Qe4 {[%emt 0:0:11]} d5 {[%emt 0:0:6]} 11. exd6 {[%emt 0:0:19]
} cxd6 {[%emt 0:0:25]} 12. Be2 {[%emt 0:1:11]} Qxe4 {[%emt 0:0:0]} 13. Nxe4 {[%emt 0:0:2]} Be6 {[%emt 0:0:14]} 14. b3 {[%emt 0:0:27]} d5 {[%emt 0:0:5]} 15. cxd5 {[%emt 0:0:39]} Bxd5 {[%emt 0:0:6]} 16. f3 {[%emt 0:1:52]
} Bxe4 {[%emt 0:0:25]} 17. fxe4 {[%emt 0:0:2]} Bb4+ {[%emt 0:0:0]} 18. Kf2 {[%emt 0:0:3]} Bc5+ {[%emt 0:0:49]} 19. Kf3 {[%emt 0:0:32]} Bd4 {[%emt 0:1:39]} 20. Rb1 {[%emt 0:0:3]} Nd7 {[%emt 0:2:37]} 21. Rd1 {[%emt 0:3:3]
} Ne5+ {[%emt 0:1:0]} 22. Kf4 {[%emt 0:0:46]} Ng6+ {[%emt 0:0:0]} 23. Kf5 {[%emt 0:2:7]} Rd8 {[%emt 0:1:26]} 24. Ba3 {[%emt 0:0:54]} Nh4+ {[%emt 0:1:16]} 25. Kg4 {[%emt 0:0:17]} Nxg2 {[%emt 0:0:8]} 26. Kg3 {[%emt 0:0:25]
} Ne3 {[%emt 0:0:5]} 27. Rdc1 {[%emt 0:0:7]} Kd7 {[%emt 0:0:0]} 28. Bc5 {[%emt 0:0:17]} Kc7 {[%emt 0:1:35]} 29. Kf3 {[%emt 0:4:19]} Rhe8 {[%emt 0:0:14]} 30. Bxd4 {[%emt 0:0:8]} Rxd4 {[%emt 0:0:1]} 31. Bb5 {[%emt 0:0:2]
} Rexe4 {[%emt 0:0:2]} 32. Rxc6+ {[%emt 0:0:2]} Kd8 {[%emt 0:0:0]} 33. Rbc1 {[%emt 0:0:3]} Nf5 {[%emt 0:1:46]} 34. Rc8+ {[%emt 0:0:5]
} Ke7 {[%emt 0:0:1]} 35. Re8+ {[%emt 0:0:2]} Kf6 {[%emt 0:0:22]} 36. Rxe4 {[%emt 0:0:2]} Nh4+ {[%emt 0:0:21]} 37. Rxh4 {[%emt 0:0:11]} Rxh4 {[%emt 0:0:0]} 38. Rc7 {[%emt 0:0:15]} Rxh2 {[%emt 0:0:27]} 39. Rxa7 {[%emt 0:0:2]
} h5 {[%emt 0:0:18]} 40. Bc4 {[%emt 0:0:11]} Kg5 {[%emt 0:0:7]} 41. a4 {[%emt 0:0:3]
} g6 {[%emt 0:0:7]} 42. Rxf7 {[%emt 0:0:5]} Ra2 {[%emt 0:0:0]} 43. Rd7 {[%emt 0:0:39]} Kh4 {[%emt 0:0:12]} 44. Rd4+ {[%emt 0:0:7]} Kh3 {[%emt 0:0:5]} 45. Re4 {[%emt 0:0:12]} g5 {[%emt 0:0:14]} 46. Bf1+ {[%emt 0:1:13]
} Kh2 {[%emt 0:0:1]} 47. Re2+ {[%emt 0:0:2]} Rxe2 {[%emt 0:0:0]} 48. Bxe2 {[%emt 0:0:1]} g4+ {[%emt 0:0:6]} 49. Kf4 {[%emt 0:0:2]} g3 {[%emt 0:0:6]} 50. Bf1 {[%emt 0:0:1]} 1-0

[Event "FIDE World Rapid-ch Open 2018"]
[White "Zvjaginsev, Vadim"]
[Black "Bocharov, Ivan"]
[Site "St. Petersburg"]
[Round "11.40"]
[Annotator "ChessBase"]
[Result "1/2-1/2"]
[Date "2018.12.28"]
[WhiteElo "2642"]
[BlackElo "2563"]
[PlyCount "39"]
[TimeControl "900+10"]

1. c4 {[%emt 0:0:0]} e5 {[%emt 0:0:0]} 2. g3 {[%emt 0:0:9]} Nf6 {[%emt 0:0:0]} 3. Bg2 {[%emt 0:0:2]} c6 {[%emt 0:0:6]} 4. Nf3 {[%emt 0:0:19]} e4 {[%emt 0:0:8]} 5. Nd4 {[%emt 0:0:4]} Qb6 {[%emt 0:0:3]} 6. e3 {[%emt 0:0:0]} d5 {[%emt 0:0:17]} 7. cxd5 {[%emt 0:0:17]} cxd5 {[%emt 0:0:2]} 8. 0-0 {[%emt 0:0:32]} Nc6 {[%emt 0:0:10]} 9. d3 {[%emt 0:0:28]} Nxd4 {[%emt 0:0:0]} 10. exd4 {[%emt 0:0:4]} Qxd4 {[%emt 0:1:33]} 11. dxe4 {[%emt 0:0:0]} Qxd1 {[%emt 0:0:2]} 12. Rxd1 {[%emt 0:0:1]} dxe4 {[%emt 0:0:2]} 13. Nc3 {[%emt 0:0:34]} Bg4 {[%emt 0:0:24]} 14. Rd4 {[%emt 0:2:19]} Bc5 {[%emt 0:2:16]
} 15. Rc4 {[%emt 0:0:2]} Rc8 {[%emt 0:0:54]} 16. Nxe4 {[%emt 0:0:3]
} Nxe4 {[%emt 0:0:7]} 17. Rxe4+ {[%emt 0:0:5]} Be6 {[%emt 0:0:0]} 18. Bh3 {[%emt 0:0:14]} Rc6 {[%emt 0:0:12]} 19. Be3 {[%emt 0:3:24]} Bxe3 {[%emt 0:0:14]} 20. Rxe3 {[%emt 0:0:2]} 1/2-1/2

[Event "FIDE World Rapid-ch Open 2018"]
[White "Pantsulaia, Levan"]
[Black "Yuffa, Daniil"]
[Site "St. Petersburg"]
[Round "11.41"]
[Annotator "ChessBase"]
[Result "0-1"]
[Date "2018.12.28"]
[WhiteElo "2597"]
[BlackElo "2572"]
[PlyCount "98"]
[TimeControl "900+10"]

1. Nf3 {[%emt 0:0:0]} d6 {[%emt 0:0:0]} 2. c4 {[%emt 0:0:1]} g6 {[%emt 0:0:0]} 3. Nc3 {[%emt 0:0:5]} Bg7 {[%emt 0:0:1]} 4. d4 {[%emt 0:0:13]} Nf6 {[%emt 0:0:2]} 5. g3 {[%emt 0:0:2]} 0-0 {[%emt 0:0:2]} 6. Bg2 {[%emt 0:0:0]} Nc6 {[%emt 0:0:12]} 7. 0-0 {[%emt 0:0:12]} Bf5 {[%emt 0:0:3]} 8. Ne1 {[%emt 0:0:30]} Bd7 {[%emt 0:0:21]} 9. e4 {[%emt 0:0:31]} e5 {[%emt 0:0:0]} 10. d5 {[%emt 0:0:37]} Nd4 {[%emt 0:0:5]} 11. Nc2 {[%emt 0:0:2]} Re8 {[%emt 0:1:9]} 12. Be3 {[%emt 0:0:44]} Ng4 {[%emt 0:0:40]} 13. Nxd4 {[%emt 0:0:27]
} Nxe3 {[%emt 0:0:3]} 14. fxe3 {[%emt 0:0:1]} exd4 {[%emt 0:0:0]} 15. exd4 {[%emt 0:0:2]} c6 {[%emt 0:0:9]} 16. Kh1 {[%emt 0:2:41]} Qb6 {[%emt 0:0:36]} 17. Qf3 {[%emt 0:0:3]} Rf8 {[%emt 0:0:55]} 18. c5 {[%emt 0:0:7]
} dxc5 {[%emt 0:0:11]} 19. Na4 {[%emt 0:0:4]} Qc7 {[%emt 0:0:0]} 20. Nxc5 {[%emt 0:2:0]} Bxd4 {[%emt 0:0:6]} 21. Nxd7 {[%emt 0:0:6]} Qxd7 {[%emt 0:0:3]} 22. Qb3 {[%emt 0:0:57]} c5 {[%emt 0:0:49]} 23. Rad1 {[%emt 0:0:11]
} Rae8 {[%emt 0:0:56]} 24. Qc2 {[%emt 0:0:24]} a5 {[%emt 0:0:0]} 25. a4 {[%emt 0:1:23]} b5 {[%emt 0:2:12]} 26. b3 {[%emt 0:0:19]} bxa4 {[%emt 0:0:26]
} 27. bxa4 {[%emt 0:0:1]} Rb8 {[%emt 0:0:24]} 28. e5 {[%emt 0:0:0]} Rfe8 {[%emt 0:1:12]} 29. Rde1 {[%emt 0:2:5]} Bxe5 {[%emt 0:2:17]} 30. Qxc5 {[%emt 0:0:3]} Rec8 {[%emt 0:0:24]} 31. Qf2 {[%emt 0:0:51]} f6 {[%emt 0:0:10]
} 32. Re2 {[%emt 0:0:44]} Rb4 {[%emt 0:1:16]} 33. Rc2 {[%emt 0:0:0]} Rxc2 {[%emt 0:0:59]} 34. Qxc2 {[%emt 0:0:2]} Rxa4 {[%emt 0:0:1]} 35. d6 {[%emt 0:0:7]} Rd4 {[%emt 0:0:23]} 36. Qa2+ {[%emt 0:0:10]} Kg7 {[%emt 0:0:5]
} 37. Qxa5 {[%emt 0:0:1]} Rxd6 {[%emt 0:0:19]} 38. Qb4 {[%emt 0:0:10]
} Rd1 {[%emt 0:0:56]} 39. Qc4 {[%emt 0:0:11]} Rd2 {[%emt 0:0:0]} 40. Rb1 {[%emt 0:0:11]} h5 {[%emt 0:0:30]} 41. Qf1 {[%emt 0:0:37]} Qd4 {[%emt 0:0:30]} 42. Re1 {[%emt 0:0:42]} h4 {[%emt 0:0:21]} 43. Re4 {[%emt 0:0:0]} Qd6 {[%emt 0:0:37]} 44. gxh4 {[%emt 0:0:3]} Bxh2 {[%emt 0:0:21]} 45. Qf3 {[%emt 0:0:43]} Be5 {[%emt 0:0:39]} 46. Rg4 {[%emt 0:0:7]} Rd1+ {[%emt 0:0:12]
} 47. Bf1 {[%emt 0:0:1]} Qd7 {[%emt 0:0:8]} 48. Rg1 {[%emt 0:0:0]} Rd4 {[%emt 0:0:4]} 49. Kg2 {[%emt 0:0:20]} Rg4+ {[%emt 0:0:10]} 0-1

[Event "FIDE World Rapid-ch Open 2018"]
[White "Tukhaev, Adam"]
[Black "Yudin, Sergei"]
[Site "St. Petersburg"]
[Round "11.42"]
[Annotator "ChessBase"]
[Result "1/2-1/2"]
[Date "2018.12.28"]
[WhiteElo "2527"]
[BlackElo "2507"]
[PlyCount "41"]
[TimeControl "900+10"]

1. e4 {[%emt 0:0:0]} d6 {[%emt 0:0:0]} 2. d4 {[%emt 0:0:4]} Nf6 {[%emt 0:0:0]} 3. Nc3 {[%emt 0:0:4]} e5 {[%emt 0:0:0]} 4. Nf3 {[%emt 0:0:26]} Nbd7 {[%emt 0:0:0]} 5. Bc4 {[%emt 0:0:10]} Be7 {[%emt 0:0:3]} 6. a4 {[%emt 0:0:11]
} 0-0 {[%emt 0:0:5]} 7. 0-0 {[%emt 0:0:5]} c6 {[%emt 0:0:2]
} 8. Re1 {[%emt 0:0:27]} h6 {[%emt 0:0:10]} 9. h3 {[%emt 0:0:20]} Re8 {[%emt 0:0:20]
} 10. b3 {[%emt 0:0:41]} exd4 {[%emt 0:0:24]} 11. Nxd4 {[%emt 0:0:45]
} Bf8 {[%emt 0:0:4]} 12. Bb2 {[%emt 0:0:12]} Nc5 {[%emt 0:0:0]} 13. Qf3 {[%emt 0:0:39]} Ne6 {[%emt 0:0:4]} 14. Nf5 {[%emt 0:2:1]} Ng5 {[%emt 0:1:11]} 15. Qf4 {[%emt 0:0:1]} Nh5 {[%emt 0:2:31]} 16. Qg4 {[%emt 0:3:17]
} Nf6 {[%emt 0:2:5]} 17. Qf4 {[%emt 0:0:6]} Nh5 {[%emt 0:0:0]} 18. Qg4 {[%emt 0:0:1]} Nf6 {[%emt 0:2:29]} 19. Qf4 {[%emt 0:0:5]} Nh5 {[%emt 0:0:2]} 20. Qg4 {[%emt 0:2:10]} Nf6 {[%emt 0:0:3]} 21. Qf4 {[%emt 0:0:2]
} 1/2-1/2